[Event "44th Chess Olympiad Women 2022"]
[Site "Chennai"]
[Date "2022.08.03"]
[Round "6.22"]
[White "Thorsteinsdottir, Hallgerdur"]
[Black "Mariroh, Fariha"]
[Result "0-1"]
[WhiteElo "1934"]
[BlackElo "1839"]
[Annotator "NA RC"]
[PlyCount "72"]
[EventDate "2022.??.??"]
[TimeControl "60"]

1. e4 {[%emt 0:00:09]} c5 {[%emt 0:00:06]} 2. Nf3 {[%emt 0:00:09]} d6 {[%emt 0:
00:00]} 3. Bb5+ {[%emt 0:00:18]} Bd7 {[%emt 0:00:07]} 4. Bxd7+ {[%emt 0:00:24]}
Qxd7 {[%emt 0:00:06]} 5. c4 {[%emt 0:00:38]} Nf6 {[%emt 0:00:29]} 6. Nc3 {
[%emt 0:00:34]} g6 {[%emt 0:00:28]} 7. O-O {[%emt 0:00:54]} Bg7 {[%emt 0:00:11]
} 8. d4 {[%emt 0:00:54]} cxd4 {[%emt 0:00:16]} 9. Nxd4 {[%emt 0:01:05]} O-O {
[%emt 0:00:14]} 10. f3 {[%emt 0:00:48]} Rc8 {[%emt 0:00:19]} 11. b3 {[%emt 0:
00:00]} d5 {[%emt 0:01:28]} 12. e5 {[%emt 0:14:50]} Ne8 {[%emt 0:00:21]} 13.
Nxd5 {[%emt 0:03:16]} e6 {[%emt 0:06:11]} 14. Nb4 {[%emt 0:10:48]} Bxe5 {
[%emt 0:05:12]} 15. Nbc2 {[%emt 0:00:55]} Rd8 {[%emt 0:03:49]} 16. Be3 {
[%emt 0:01:38]} Nc6 {[%emt 0:02:04]} 17. Nxc6 {[%emt 0:13:22]} Qxc6 {[%emt 0:
00:00]} 18. Qe2 {[%emt 0:01:04]} Bxa1 {[%emt 0:00:27]} 19. Rxa1 {[%emt 0:00:12]
} Qd6 {[%emt 0:03:01]} 20. Bd4 {[%emt 0:00:53]} f6 {[%emt 0:00:56]} 21. f4 {
[%emt 0:08:01]} Kf7 {[%emt 0:10:39]} 22. Re1 {[%emt 0:01:37]} Ng7 {[%emt 0:00:
00]} 23. Qf3 {[%emt 0:06:28]} Nf5 {[%emt 0:10:16]} 24. Ba1 {[%emt 0:03:42]} Qd3
{[%emt 0:08:01]} 25. Qxb7+ {[%emt 0:01:02]} Ne7 {[%emt 0:00:16]} 26. Nd4 {
[%emt 0:02:54]} Rxd4 {[%emt 0:05:03]} 27. Qxa8 {[%emt 0:02:24]} Qd2 {[%emt 0:
00:00]} 28. Rb1 {[%emt 0:11:22]} Qe3+ {[%emt 0:11:06]} 29. Kh1 {[%emt 0:00:07]}
Rxf4 {[%emt 0:02:32]} 30. h3 {[%emt 0:02:41]} Qd3 {[%emt 0:00:44]} 31. Rg1 {
[%emt 0:00:22]} g5 {[%emt 0:09:48]} 32. Qxa7 {[%emt 0:01:47]} g4 {[%emt 0:00:
00]} 33. hxg4 {[%emt 0:00:51]} Qg3 {[%emt 0:06:20]} 34. Rb1 {[%emt 0:07:04]}
Rxg4 {[%emt 0:00:28]} 35. Qb7 {[%emt 0:00:37]} Rh4+ {[%emt 0:00:19]} 36. Kg1 {
[%emt 0:00:10]} Qe3+ {[%emt 0:00:06]} 0-1

[Event "44th Chess Olympiad Women 2022"]
[Site "Chennai"]
[Date "2022.08.03"]
[Round "6.23"]
[White "Cramling, Pia"]
[Black "Mezioud, Amina"]
[Result "1-0"]
[WhiteElo "2459"]
[BlackElo "2024"]
[Annotator "TA"]
[PlyCount "57"]
[EventDate "2022.??.??"]
[TimeControl "60"]

{[%evp 12,57,7,24,53,53,70,45,57,47,61,61,73,73,81,79,90,91,96,96,100,106,216,
211,215,204,212,210,209,205,438,432,477,488,458,468,791,779,777,825,1075,868,
1326,1269,2040,1926,1882,1840]} 1. d4 {[%emt 0:00:03]} Nf6 {[%emt 0:00:11]} 2.
c4 {[%emt 0:00:07]} e6 {[%emt 0:00:06]} 3. Nf3 {[%emt 0:00:09]} b6 {[%emt 0:00:
00]} 4. e3 {[%emt 0:04:29]} Bb7 {[%emt 0:00:07]} 5. Bd3 {[%emt 0:00:06]} Be7 {
[%emt 0:02:38]} 6. O-O {[%emt 0:01:43]} O-O {[%emt 0:00:08]} 7. Nc3 {[%emt 0:
00:00]} d6 {[%emt 0:04:39] E14: Queen's Indian: Classical Variation (4 e3).} 8.
e4 {[%emt 0:04:07]} Nbd7 {[%emt 0:00:18]} 9. Re1 {[%emt 0:05:07]} e5 {[%emt 0:
00:00] White is slightly better.} 10. Rb1 {[%emt 0:03:00]} a5 {[%emt 0:05:26] 
[#]} 11. b3 $146 {[%emt 0:17:03][%cal Yb2b3,Yb3b4]} ({Predecessor:} 11. Bc2
exd4 12. Nxd4 Nc5 13. a3 Nfd7 14. Nd5 Re8 15. b4 Ne6 16. Nxe7+ Qxe7 17. Nf5 {
1-0 (35) Antoli Royo,J (2428)-Martinez Lopez,D (2209) Linares 2014}) 11... Re8
{[%emt 0:00:19]} 12. d5 {[%emt 0:03:02] White now steadily converts the win.}
g6 {[%emt 0:03:19]} 13. a3 {[%emt 0:03:51]} Nh5 {[%emt 0:05:36]} 14. b4 {
[%emt 0:05:05]} Ng7 {[%emt 0:04:51]} 15. Qc2 {[%emt 0:07:24]} Nf8 {[%emt 0:00:
00]} 16. Be3 {[%emt 0:02:58][%cal Yc4c5] White is more active.} Ba6 {[%emt 0:
00:00]} (16... Nd7 $16) 17. bxa5 $18 {[%emt 0:06:11]} bxa5 {[%emt 0:02:57]} 18.
c5 $1 {[%emt 0:00:34]} Bxd3 {[%emt 0:04:30]} 19. Qxd3 {[%emt 0:00:06]} f5 {
[%emt 0:05:33]} 20. c6 {[%emt 0:00:38]} g5 $2 {[%emt 0:06:00] [#]} (20... f4)
21. exf5 {[%emt 0:06:17] White is clearly winning.} g4 {[%emt 0:00:08]} 22. Nd2
{[%emt 0:00:13]} Qc8 {[%emt 0:00:10]} 23. Rb7 {[%emt 0:01:45]} Nxf5 {[%emt 0:
00:00]} (23... Qxf5 $142 24. Qxf5 Nxf5 25. Rxc7 Reb8) 24. Nb5 {[%emt 0:01:57]
[%cal Yc3b5,Yb5c7,Yc7a8]} Nxe3 {[%emt 0:06:04]} 25. fxe3 {[%emt 0:00:00]} g3 {
[%emt 0:02:56]} 26. hxg3 {[%emt 0:00:13]} Qg4 {[%emt 0:06:12]} 27. Ne4 {
[%emt 0:00:21]} Ng6 {[%emt 0:07:17]} 28. Nxc7 {[%emt 0:07:24]} Rf8 {[%emt 0:00:
00]} 29. Nxa8 {[%emt 0:01:10] Weighted Error Value: White=0.03 (flawless) /
Black=0.39} 1-0

[Event "44th Chess Olympiad Women 2022"]
[Site "Chennai"]
[Date "2022.08.03"]
[Round "6.23"]
[White "Hamza, Amira"]
[Black "Andric, Jelena"]
[Result "1-0"]
[WhiteElo "1848"]
[BlackElo "1993"]
[Annotator "NA RC"]
[PlyCount "129"]
[EventDate "2022.??.??"]
[TimeControl "60"]

1. d4 {[%emt 0:00:14]} d5 {[%emt 0:00:17]} 2. Nf3 {[%emt 0:00:25]} Nf6 {
[%emt 0:00:33]} 3. g3 {[%emt 0:00:36]} e6 {[%emt 0:00:59]} 4. Bg2 {[%emt 0:00:
00]} c5 {[%emt 0:02:04]} 5. O-O {[%emt 0:00:54]} Nbd7 {[%emt 0:09:34]} 6. c4 {
[%emt 0:03:43]} Be7 {[%emt 0:09:37]} 7. Nc3 {[%emt 0:04:27]} dxc4 {[%emt 0:00:
00]} 8. Qa4 {[%emt 0:04:18]} O-O {[%emt 0:07:47]} 9. Qxc4 {[%emt 0:02:20]} Nb6
{[%emt 0:06:16]} 10. Qd3 {[%emt 0:03:01]} c4 {[%emt 0:06:52]} 11. Qc2 {[%emt 0:
00:00]} Nbd5 {[%emt 0:02:59]} 12. Ne5 {[%emt 0:08:09]} Bd7 {[%emt 0:10:26]} 13.
Nxc4 {[%emt 0:13:29]} Rc8 {[%emt 0:01:19]} 14. Ne5 {[%emt 0:01:24]} Bb5 {
[%emt 0:08:35]} 15. Re1 {[%emt 0:08:57]} Nxc3 {[%emt 0:02:30]} 16. bxc3 {
[%emt 0:00:16]} Qxd4 {[%emt 0:01:22]} 17. Nc6 {[%emt 0:06:43]} Qd7 {[%emt 0:00:
00]} 18. Nxe7+ {[%emt 0:11:19]} Qxe7 {[%emt 0:00:05]} 19. Qb3 {[%emt 0:00:11]}
Qd7 {[%emt 0:05:29]} 20. Rd1 {[%emt 0:07:54]} Nd5 {[%emt 0:06:58]} 21. Ba3 {
[%emt 0:14:53]} Ba4 {[%emt 0:02:01]} 22. Qb2 {[%emt 0:00:06]} Bxd1 {[%emt 0:00:
00]} 23. Rxd1 {[%emt 0:00:39]} Qa4 {[%emt 0:01:18]} 24. Rd4 {[%emt 0:00:40]}
Qa5 {[%emt 0:01:57]} 25. Bxf8 {[%emt 0:00:28]} Kxf8 {[%emt 0:01:04]} 26. Bxd5 {
[%emt 0:00:25]} exd5 {[%emt 0:00:05]} 27. Qxb7 {[%emt 0:00:20]} Qxc3 {[%emt 0:
00:00]} 28. Rxd5 {[%emt 0:00:27]} Qc1+ {[%emt 0:01:09]} 29. Kg2 {[%emt 0:00:06]
} Qc6 {[%emt 0:00:12]} 30. Qb4+ {[%emt 0:00:41]} Kg8 {[%emt 0:00:19]} 31. e4 {
[%emt 0:00:45]} h6 {[%emt 0:01:05]} 32. Ra5 {[%emt 0:00:59]} Qb6 {[%emt 0:00:
00]} 33. Qxb6 {[%emt 0:01:05]} axb6 {[%emt 0:00:04]} 34. Rb5 {[%emt 0:00:07]}
Rc2 {[%emt 0:00:41]} 35. Rxb6 {[%emt 0:00:12]} Rxa2 {[%emt 0:00:05]} 36. Rb3 {
[%emt 0:00:47]} g6 {[%emt 0:01:33]} 37. Kf3 {[%emt 0:00:07]} Kg7 {[%emt 0:00:
00]} 38. h4 {[%emt 0:00:19]} h5 {[%emt 0:00:34]} 39. Re3 {[%emt 0:00:36]} Kf6 {
[%emt 0:00:36]} 40. Re2 {[%emt 0:00:33]} Ra3+ {[%emt 0:00:15]} 41. Kf4 {
[%emt 0:31:30]} Ke6 {[%emt 0:07:25]} 42. Re3 {[%emt 0:00:00]} Ra2 {[%emt 0:00:
00]} 43. f3 {[%emt 0:00:00]} f6 {[%emt 0:01:21]} 44. Rb3 {[%emt 0:00:00]} Ra6 {
[%emt 0:00:17]} 45. Rb5 {[%emt 0:00:00]} Rc6 {[%emt 0:00:40]} 46. g4 {[%emt 0:
00:00]} hxg4 {[%emt 0:03:35]} 47. Kxg4 {[%emt 0:00:00]} Ra6 {[%emt 0:02:31]}
48. h5 {[%emt 0:00:00]} gxh5+ {[%emt 0:00:11]} 49. Kxh5 {[%emt 0:00:00]} Ra3 {
[%emt 0:02:02]} 50. Kg4 {[%emt 0:00:00]} Ra4 {[%emt 0:02:19]} 51. Rb6+ {
[%emt 0:00:00]} Kf7 {[%emt 0:00:49]} 52. Rd6 {[%emt 0:00:00]} Ke7 {[%emt 0:00:
00]} 53. Rc6 {[%emt 0:00:00]} Ra5 {[%emt 0:00:51]} 54. f4 {[%emt 0:00:00]} Ra4
{[%emt 0:03:15]} 55. Kf5 {[%emt 0:00:00]} Ra5+ {[%emt 0:00:39]} 56. e5 {
[%emt 0:00:00]} fxe5 {[%emt 0:00:24]} 57. fxe5 {[%emt 0:00:00]} Ra7 {[%emt 0:
00:00]} 58. Rh6 {[%emt 0:00:00]} Ra1 {[%emt 0:01:14]} 59. Rh7+ {[%emt 0:00:00]}
Kf8 {[%emt 0:00:16]} 60. Kf6 {[%emt 0:00:00]} Kg8 {[%emt 0:01:30]} 61. Rg7+ {
[%emt 0:00:00]} Kf8 {[%emt 0:00:42]} 62. Rb7 {[%emt 0:00:00]} Ra8 {[%emt 0:00:
00]} 63. e6 {[%emt 0:00:00]} Re8 {[%emt 0:00:41]} 64. e7+ {[%emt 0:00:00]} Kg8
{[%emt 0:00:23]} 65. Rd7 {[%emt 0:00:00]} 1-0

[Event "44th Chess Olympiad Women 2022"]
[Site "Chennai"]
[Date "2022.08.03"]
[Round "6.23"]
[White "Johansson, Viktoria"]
[Black "Abdi, Zineb Dina"]
[Result "1-0"]
[WhiteElo "2041"]
[BlackElo "1899"]
[Annotator "NA RC"]
[PlyCount "117"]
[EventDate "2022.??.??"]
[TimeControl "60"]

1. d4 {[%emt 0:00:03]} Nf6 {[%emt 0:00:31]} 2. c4 {[%emt 0:00:07]} e6 {[%emt 0:
00:00]} 3. Nc3 {[%emt 0:00:11]} d5 {[%emt 0:00:16]} 4. cxd5 {[%emt 0:00:15]}
exd5 {[%emt 0:00:08]} 5. Bg5 {[%emt 0:00:08]} c6 {[%emt 0:00:39]} 6. e3 {
[%emt 0:01:12]} h6 {[%emt 0:01:39]} 7. Bh4 {[%emt 0:01:02]} Bf5 {[%emt 0:00:35]
} 8. Qf3 {[%emt 0:09:35]} Bh7 {[%emt 0:01:28]} 9. Bxf6 {[%emt 0:00:16]} Qxf6 {
[%emt 0:00:09]} 10. Qxf6 {[%emt 0:00:06]} gxf6 {[%emt 0:00:04]} 11. Nge2 {
[%emt 0:02:14]} h5 {[%emt 0:12:17]} 12. Rc1 {[%emt 0:10:00]} Nd7 {[%emt 0:00:
00]} 13. Nf4 {[%emt 0:04:00]} Bf5 {[%emt 0:04:33]} 14. Bd3 {[%emt 0:08:30]}
Bxd3 {[%emt 0:00:30]} 15. Nxd3 {[%emt 0:00:05]} Rg8 {[%emt 0:09:11]} 16. g3 {
[%emt 0:05:39]} f5 {[%emt 0:04:47]} 17. Ke2 {[%emt 0:06:06]} Bd6 {[%emt 0:00:
00]} 18. Na4 {[%emt 0:05:53]} Ke7 {[%emt 0:07:32]} 19. Nac5 {[%emt 0:02:02]}
Nxc5 {[%emt 0:01:36]} 20. Nxc5 {[%emt 0:05:34]} Bxc5 {[%emt 0:03:52]} 21. Rxc5
{[%emt 0:01:35]} Rh8 {[%emt 0:02:31]} 22. h4 {[%emt 0:00:41]} a5 {[%emt 0:00:
00]} 23. b3 {[%emt 0:00:30]} Ra6 {[%emt 0:00:30]} 24. Rhc1 {[%emt 0:00:30]}
Rha8 {[%emt 0:00:30]} 25. R1c2 {[%emt 0:00:30]} Rb6 {[%emt 0:00:30]} 26. Rb2 {
[%emt 0:00:30]} Ke6 {[%emt 0:00:30]} 27. f3 {[%emt 0:00:30]} Rg8 {[%emt 0:00:
00]} 28. Kf2 {[%emt 0:00:30]} Ra6 {[%emt 0:00:30]} 29. Rd2 {[%emt 0:00:30]}
Raa8 {[%emt 0:00:30]} 30. e4 {[%emt 0:00:30]} fxe4 {[%emt 0:00:30]} 31. fxe4 {
[%emt 0:00:30]} Kd6 {[%emt 0:00:30]} 32. exd5 {[%emt 0:00:30]} cxd5 {[%emt 0:
00:00]} 33. Rc3 {[%emt 0:00:30]} Rg4 {[%emt 0:00:30]} 34. Rf3 {[%emt 0:00:30]}
Rag8 {[%emt 0:00:30]} 35. Rdd3 {[%emt 0:00:30]} R8g7 {[%emt 0:00:30]} 36. Rf6+
{[%emt 0:00:30]} Kd7 {[%emt 0:00:30]} 37. Rf5 {[%emt 0:00:30]} Ke6 {[%emt 0:00:
00]} 38. Re5+ {[%emt 0:00:30]} Kd6 {[%emt 0:00:30]} 39. Rxh5 {[%emt 0:00:30]}
Re4 {[%emt 0:00:30]} 40. Rh6+ {[%emt 0:00:30]} Kd7 {[%emt 0:00:30]} 41. Rb6 {
[%emt 0:30:30]} Kc7 {[%emt 0:30:30]} 42. Rb5 {[%emt 0:00:30]} Kc6 {[%emt 0:00:
00]} 43. a4 {[%emt 0:00:30]} Rgg4 {[%emt 0:00:30]} 44. Rc3+ {[%emt 0:00:30]}
Kd6 {[%emt 0:00:30]} 45. Rb6+ {[%emt 0:00:30]} Ke7 {[%emt 0:00:30]} 46. Rxb7+ {
[%emt 0:00:30]} Kf8 {[%emt 0:00:30]} 47. Rf3 {[%emt 0:00:30]} Re7 {[%emt 0:00:
00]} 48. Rxe7 {[%emt 0:00:30]} Kxe7 {[%emt 0:00:30]} 49. Rf4 {[%emt 0:00:30]}
Rg6 {[%emt 0:00:30]} 50. Rf5 {[%emt 0:00:30]} Ke6 {[%emt 0:00:30]} 51. Re5+ {
[%emt 0:00:30]} Kd6 {[%emt 0:00:30]} 52. Kf3 {[%emt 0:00:30]} f6 {[%emt 0:00:
00]} 53. Re8 {[%emt 0:00:30]} Rg7 {[%emt 0:00:30]} 54. Rb8 {[%emt 0:00:30]} f5
{[%emt 0:00:30]} 55. Rb6+ {[%emt 0:00:30]} Kc7 {[%emt 0:00:30]} 56. Rb5 {
[%emt 0:00:30]} Kc6 {[%emt 0:00:30]} 57. Rc5+ {[%emt 0:00:30]} Kd6 {[%emt 0:00:
00]} 58. Rxa5 {[%emt 0:00:30]} Rg4 {[%emt 0:00:30]} 59. Ra6+ {[%emt 0:00:30]}
1-0

[Event "44th Chess Olympiad Women 2022"]
[Site "Chennai"]
[Date "2022.08.03"]
[Round "6.23"]
[White "Nassr, Lina"]
[Black "Cramling Bellon, Anna"]
[Result "1/2-1/2"]
[WhiteElo "2011"]
[BlackElo "2065"]
[Annotator "NA RC"]
[PlyCount "131"]
[EventDate "2022.??.??"]
[TimeControl "60"]

1. d4 {[%emt 0:00:07]} d5 {[%emt 0:00:22]} 2. Nf3 {[%emt 0:00:06]} Nf6 {
[%emt 0:00:18]} 3. e3 {[%emt 0:00:08]} e6 {[%emt 0:00:25]} 4. Bd3 {[%emt 0:00:
00]} Bd6 {[%emt 0:04:44]} 5. b3 {[%emt 0:00:34]} O-O {[%emt 0:01:13]} 6. Bb2 {
[%emt 0:00:13]} b6 {[%emt 0:00:10]} 7. Nbd2 {[%emt 0:01:16]} Bb7 {[%emt 0:00:
00]} 8. O-O {[%emt 0:00:07]} Ne4 {[%emt 0:02:41]} 9. c4 {[%emt 0:00:36]} f5 {
[%emt 0:01:36]} 10. cxd5 {[%emt 0:04:51]} exd5 {[%emt 0:00:40]} 11. Ne5 {
[%emt 0:03:10]} Nd7 {[%emt 0:07:29]} 12. Ndf3 {[%emt 0:08:07]} c5 {[%emt 0:00:
00]} 13. Nxd7 {[%emt 0:09:44]} Qxd7 {[%emt 0:00:26]} 14. Ne5 {[%emt 0:02:50]}
Qe7 {[%emt 0:27:27]} 15. f3 {[%emt 0:13:41]} Ng5 {[%emt 0:07:33]} 16. f4 {
[%emt 0:07:48]} Ne4 {[%emt 0:03:45]} 17. Bxe4 {[%emt 0:10:41]} fxe4 {[%emt 0:
00:00]} 18. Qg4 {[%emt 0:08:20]} Bc8 {[%emt 0:16:05]} 19. Qe2 {[%emt 0:13:05]}
a5 {[%emt 0:01:17]} 20. Rfd1 {[%emt 0:05:47]} Bxe5 {[%emt 0:00:16]} 21. dxe5 {
[%emt 0:01:04]} Qe6 {[%emt 0:01:53]} 22. Rd2 {[%emt 0:03:40]} Ba6 {[%emt 0:00:
00]} 23. Qh5 {[%emt 0:00:07]} Rad8 {[%emt 0:08:56]} 24. Rad1 {[%emt 0:02:18]}
Bd3 {[%emt 0:00:20]} 25. Re1 {[%emt 0:01:42]} Qg6 {[%emt 0:00:23]} 26. Qxg6 {
[%emt 0:01:13]} hxg6 {[%emt 0:00:02]} 27. h4 {[%emt 0:00:18]} b5 {[%emt 0:00:
00]} 28. a3 {[%emt 0:01:42]} b4 {[%emt 0:00:32]} 29. axb4 {[%emt 0:00:32]} axb4
{[%emt 0:00:07]} 30. Rc1 {[%emt 0:00:33]} c4 {[%emt 0:00:24]} 31. Bd4 {[%emt 0:
00:00]} Ra8 {[%emt 0:01:28]} 32. g4 {[%emt 0:00:39]} c3 {[%emt 0:00:30]} 33.
Rdd1 {[%emt 0:00:29]} Ra3 {[%emt 0:00:32]} 34. Bc5 {[%emt 0:00:25]} Rb8 {
[%emt 0:00:28]} 35. Rxc3 {[%emt 0:00:23]} bxc3 {[%emt 0:00:05]} 36. Bxa3 {
[%emt 0:00:04]} Rxb3 {[%emt 0:00:24]} 37. Bc1 {[%emt 0:00:53]} Be2 {[%emt 0:00:
00]} 38. Re1 {[%emt 0:00:48]} Bxg4 {[%emt 0:00:08]} 39. Kf2 {[%emt 0:00:13]}
Kf7 {[%emt 0:00:25]} 40. Rg1 {[%emt 0:00:44]} Bf5 {[%emt 0:00:55]} 41. Ke1 {
[%emt 0:17:13]} Bd7 {[%emt 0:22:15]} 42. Rg2 {[%emt 0:05:33]} Bb5 {[%emt 0:00:
00]} 43. Ra2 {[%emt 0:01:29]} Bd3 {[%emt 0:06:07]} 44. Ra3 {[%emt 0:01:39]}
Rxa3 {[%emt 0:00:48]} 45. Bxa3 {[%emt 0:00:03]} Ke6 {[%emt 0:00:28]} 46. Bb4 {
[%emt 0:00:52]} c2 {[%emt 0:00:24]} 47. Kd2 {[%emt 0:00:13]} d4 {[%emt 0:00:28]
} 48. exd4 {[%emt 0:01:18]} e3+ {[%emt 0:00:26]} 49. Kc1 {[%emt 0:00:04]} Kd5 {
[%emt 0:00:24]} 50. Be1 {[%emt 0:05:13]} Bf5 {[%emt 0:00:18]} 51. Ba5 {[%emt 0:
00:00]} Kxd4 {[%emt 0:00:29]} 52. e6 {[%emt 0:00:30]} Kd3 {[%emt 0:00:30]} 53.
e7 {[%emt 0:00:13]} Bd7 {[%emt 0:00:05]} 54. Bb6 {[%emt 0:00:47]} Ba4 {[%emt 0:
00:00]} 55. Ba7 {[%emt 0:00:29]} Ke2 {[%emt 0:00:45]} 56. e8=Q {[%emt 0:00:23]}
Bxe8 {[%emt 0:00:04]} 57. Kxc2 {[%emt 0:00:04]} Ba4+ {[%emt 0:00:34]} 58. Kc3 {
[%emt 0:00:17]} Kf3 {[%emt 0:00:36]} 59. Kd3 {[%emt 0:00:49]} Bb5+ {[%emt 0:00:
00]} 60. Kc2 {[%emt 0:00:24]} Kxf4 {[%emt 0:00:35]} 61. Kd1 {[%emt 0:00:35]}
Kf3 {[%emt 0:00:37]} 62. Ke1 {[%emt 0:00:13]} e2 {[%emt 0:00:25]} 63. Bc5 {
[%emt 0:00:14]} Kg4 {[%emt 0:00:36]} 64. Be7 {[%emt 0:00:06]} Kg3 {[%emt 0:00:
00]} 65. Bg5 {[%emt 0:00:05]} Kf3 {[%emt 0:00:27]} 66. Bd8 {[%emt 0:00:06]}
1/2-1/2

[Event "44th Chess Olympiad Women 2022"]
[Site "Chennai"]
[Date "2022.08.03"]
[Round "6.24"]
[White "Hapala, Elisabeth"]
[Black "Ramirez Gonzalez, Maria Jose"]
[Result "1-0"]
[WhiteElo "2113"]
[BlackElo "1809"]
[Annotator "NA RC"]
[PlyCount "115"]
[EventDate "2022.??.??"]
[TimeControl "60"]

1. e4 {[%emt 0:00:01]} e5 {[%emt 0:00:01]} 2. Nf3 {[%emt 0:00:06]} Nc6 {
[%emt 0:00:03]} 3. Bb5 {[%emt 0:00:04]} Nge7 {[%emt 0:00:05]} 4. Nc3 {[%emt 0:
00:00]} d6 {[%emt 0:00:05]} 5. O-O {[%emt 0:04:19]} a6 {[%emt 0:01:47]} 6. Ba4
{[%emt 0:00:18]} Bd7 {[%emt 0:00:43]} 7. Re1 {[%emt 0:00:39]} Ng6 {[%emt 0:00:
00]} 8. Nd5 {[%emt 0:00:33]} Be7 {[%emt 0:00:56]} 9. c3 {[%emt 0:02:02]} O-O {
[%emt 0:00:31]} 10. d4 {[%emt 0:03:01]} b5 {[%emt 0:07:43]} 11. Bc2 {[%emt 0:
00:00]} a5 {[%emt 0:03:23]} 12. h3 {[%emt 0:02:55]} Re8 {[%emt 0:05:53]} 13.
Nxe7+ {[%emt 0:04:47]} Ncxe7 {[%emt 0:06:49]} 14. a4 {[%emt 0:08:47]} exd4 {
[%emt 0:09:35]} 15. cxd4 {[%emt 0:03:48]} b4 {[%emt 0:04:12]} 16. Bb3 {[%emt 0:
00:00]} c5 {[%emt 0:06:12]} 17. dxc5 {[%emt 0:02:24]} dxc5 {[%emt 0:03:07]} 18.
Bxf7+ {[%emt 0:05:59]} Kxf7 {[%emt 0:01:43]} 19. Qb3+ {[%emt 0:01:01]} Nd5 {
[%emt 0:14:33]} 20. Qxd5+ {[%emt 0:00:12]} Be6 {[%emt 0:08:35]} 21. Ng5+ {
[%emt 0:00:12]} Kg8 {[%emt 0:03:46]} 22. Nxe6 {[%emt 0:00:11]} Qxd5 {[%emt 0:
00:00]} 23. exd5 {[%emt 0:00:02]} Nf8 {[%emt 0:04:25]} 24. Bf4 {[%emt 0:01:47]}
Nxe6 {[%emt 0:00:00]} 25. dxe6 {[%emt 0:00:36]} c4 {[%emt 0:00:00]} 26. Rad1 {
[%emt 0:03:10]} Rac8 {[%emt 0:01:18]} 27. Rd5 {[%emt 0:02:20]} c3 {[%emt 0:00:
00]} 28. bxc3 {[%emt 0:00:06]} Rxc3 {[%emt 0:00:13]} 29. Rxa5 {[%emt 0:00:18]}
Rc4 {[%emt 0:00:56]} 30. Bd6 {[%emt 0:00:33]} b3 {[%emt 0:01:22]} 31. Rb5 {
[%emt 0:01:50]} Rd4 {[%emt 0:01:11]} 32. Bg3 {[%emt 0:01:04]} Rxa4 {[%emt 0:00:
00]} 33. Rxb3 {[%emt 0:00:01]} Ra6 {[%emt 0:00:20]} 34. Rbe3 {[%emt 0:00:23]}
g5 {[%emt 0:00:26]} 35. h4 {[%emt 0:00:24]} h6 {[%emt 0:00:16]} 36. hxg5 {
[%emt 0:00:04]} hxg5 {[%emt 0:00:05]} 37. Re5 {[%emt 0:00:07]} Kh7 {[%emt 0:00:
00]} 38. Rxg5 {[%emt 0:00:22]} Raxe6 {[%emt 0:00:05]} 39. Rxe6 {[%emt 0:00:04]}
Rxe6 {[%emt 0:00:15]} 40. f4 {[%emt 0:00:26]} Re7 {[%emt 0:00:24]} 41. Kf2 {
[%emt 0:30:05]} Re6 {[%emt 0:30:08]} 42. Re5 {[%emt 0:00:17]} Rf6 {[%emt 0:00:
00]} 43. Kf3 {[%emt 0:00:04]} Rg6 {[%emt 0:00:24]} 44. f5 {[%emt 0:00:23]} Rf6
{[%emt 0:05:09]} 45. Bh4 {[%emt 0:02:29]} Rf8 {[%emt 0:00:14]} 46. g4 {[%emt 0:
00:00]} Kh6 {[%emt 0:00:22]} 47. Re6+ {[%emt 0:00:21]} Kh7 {[%emt 0:00:11]} 48.
Kf4 {[%emt 0:00:15]} Kh8 {[%emt 0:00:10]} 49. Bf6+ {[%emt 0:00:44]} Kh7 {
[%emt 0:00:19]} 50. Re7+ {[%emt 0:00:42]} Kg8 {[%emt 0:02:16]} 51. Rg7+ {
[%emt 0:00:07]} Kh8 {[%emt 0:00:02]} 52. Rf7+ {[%emt 0:00:05]} Kg8 {[%emt 0:00:
00]} 53. Rxf8+ {[%emt 0:00:05]} Kxf8 {[%emt 0:00:04]} 54. g5 {[%emt 0:00:06]}
Kg8 {[%emt 0:00:16]} 55. g6 {[%emt 0:00:06]} Kf8 {[%emt 0:00:09]} 56. Kg5 {
[%emt 0:00:07]} Kg8 {[%emt 0:00:09]} 57. Kh6 {[%emt 0:00:05]} Kf8 {[%emt 0:00:
00]} 58. Kh7 {[%emt 0:00:07]} 1-0

[Event "44th Chess Olympiad Women 2022"]
[Site "Chennai"]
[Date "2022.08.03"]
[Round "6.24"]
[White "Mayorga Araya, Sofia"]
[Black "Mayrhuber, Nikola"]
[Result "0-1"]
[WhiteElo "1758"]
[BlackElo "2141"]
[Annotator "NA RC"]
[PlyCount "90"]
[EventDate "2022.??.??"]
[TimeControl "60"]

1. e4 {[%emt 0:00:02]} c5 {[%emt 0:00:05]} 2. Nf3 {[%emt 0:00:07]} d6 {[%emt 0:
00:00]} 3. Bb5+ {[%emt 0:00:05]} Nd7 {[%emt 0:00:05]} 4. d4 {[%emt 0:00:39]}
cxd4 {[%emt 0:00:14]} 5. Qxd4 {[%emt 0:00:02]} a6 {[%emt 0:00:11]} 6. Bxd7+ {
[%emt 0:00:33]} Bxd7 {[%emt 0:00:05]} 7. c4 {[%emt 0:00:24]} Nf6 {[%emt 0:00:
00]} 8. Nc3 {[%emt 0:00:23]} g6 {[%emt 0:00:17]} 9. Nd5 {[%emt 0:10:10]} Bg7 {
[%emt 0:13:59]} 10. Bg5 {[%emt 0:07:46]} O-O {[%emt 0:04:24]} 11. e5 {[%emt 0:
00:00]} Nxd5 {[%emt 0:07:26]} 12. Qxd5 {[%emt 0:04:18]} Bc6 {[%emt 0:02:50]}
13. Qd3 {[%emt 0:03:21]} Bxf3 {[%emt 0:03:33]} 14. Qxf3 {[%emt 0:00:54]} Qa5+ {
[%emt 0:01:11]} 15. Bd2 {[%emt 0:07:16]} Qxe5+ {[%emt 0:00:11]} 16. Qe2 {
[%emt 0:00:16]} Qxb2 {[%emt 0:09:08]} 17. O-O {[%emt 0:02:22]} Bc3 {[%emt 0:00:
00]} 18. Rfd1 {[%emt 0:06:13]} Bxd2 {[%emt 0:06:26]} 19. Qxd2 {[%emt 0:00:04]}
Qxd2 {[%emt 0:01:08]} 20. Rxd2 {[%emt 0:00:01]} Rac8 {[%emt 0:02:09]} 21. Rd4 {
[%emt 0:03:12]} Rc7 {[%emt 0:01:30]} 22. Kf1 {[%emt 0:06:51]} Rfc8 {[%emt 0:00:
00]} 23. Rb1 {[%emt 0:00:58]} Rxc4 {[%emt 0:02:15]} 24. Rxc4 {[%emt 0:00:32]}
Rxc4 {[%emt 0:00:05]} 25. Rxb7 {[%emt 0:00:05]} Rc1+ {[%emt 0:01:34]} 26. Ke2 {
[%emt 0:00:20]} Rc2+ {[%emt 0:00:16]} 27. Kf3 {[%emt 0:00:10]} Kf8 {[%emt 0:00:
00]} 28. g4 {[%emt 0:10:09]} Rxa2 {[%emt 0:03:25]} 29. g5 {[%emt 0:00:08]} Ra5
{[%emt 0:00:53]} 30. Rb8+ {[%emt 0:01:15]} Kg7 {[%emt 0:00:10]} 31. h4 {
[%emt 0:01:30]} Rf5+ {[%emt 0:01:52]} 32. Kg3 {[%emt 0:00:48]} h6 {[%emt 0:00:
00]} 33. gxh6+ {[%emt 0:01:20]} Kxh6 {[%emt 0:00:14]} 34. Rb7 {[%emt 0:00:07]}
Re5 {[%emt 0:02:21]} 35. Ra7 {[%emt 0:00:57]} a5 {[%emt 0:06:12]} 36. f4 {
[%emt 0:00:15]} Rb5 {[%emt 0:01:05]} 37. Rxe7 {[%emt 0:00:23]} Kg7 {[%emt 0:00:
00]} 38. Rd7 {[%emt 0:03:53]} d5 {[%emt 0:00:46]} 39. Kg4 {[%emt 0:01:49]} a4 {
[%emt 0:00:50]} 40. h5 {[%emt 0:03:53]} gxh5+ {[%emt 0:06:52]} 41. Kg5 {
[%emt 0:34:59]} Ra5 {[%emt 0:40:53]} 42. f5 {[%emt 0:01:24]} a3 {[%emt 0:00:00]
} 43. f6+ {[%emt 0:00:00]} Kg8 {[%emt 0:00:00]} 44. Rd8+ {[%emt 0:00:00]} Kh7 {
[%emt 0:00:00]} 45. Rd7 {[%emt 0:00:00]} d4+ {[%emt 0:00:00]} 0-1